Cogmind - Beta 17.1 @@@ ROGUE MODE // 2026.09.18 @ 04:51:33 Player: profwumbo Result: Destroyed by G-34 Mercenary with Small Laser Performance ------------- Evolutions (1) 500 Regions Visited (2) 400 Robots Destroyed (24) 120 Value Destroyed (468) 468 Prototype IDs (0) 0 Alien Tech Used (0) 0 Bonus (0) 0 TOTAL SCORE: 1488 Bonus ------- None Cogmind --------- Core Integrity 0/400 Matter 241/300 Energy 99/100 System Corruption 1% Temperature Cool (6) Movement Core (50) Location -9/Materials Parts ------- > --- POWER (1) -------- (None) > --- PROPULSION (4) --- (None) > --- UTILITY (2) ------ (None) > --- WEAPON (2) ------- (None) > --- INVENTORY (5) ---- Ion Engine Improved Ion Engine Hacking Suite Peak State ------------ > --- POWER ------------ Light Ion Engine > --- PROPULSION ------- Wheel Wheel Compact Wheel Flight Unit > --- UTILITY ---------- Improved Terrain Scanner Terrain Scan Processor > --- WEAPON ----------- Assault Rifle Assault Rifle > --- INVENTORY -------- Light Ion Engine Flight Unit Propulsion Shielding Grenade Launcher [Rating: 12] Favorites ----------- Power Light Ion Engine Engine Light Ion Engine Propulsion Wheel Wheel Wheel Flight Unit Flight Unit Utility Improved Terrain Scanner Device Improved Terrain Scanner Processor Terrain Scan Processor Weapon Assault Rifle Ballistic Gun Assault Rifle Launcher Grenade Launcher Build | -11 -10 -9 ------- Run | Yrd Mat Mat Slots Evolved 2 | . . 2 Power . | . . . Propulsion 2 | . . 2 Utility . | . . . Weapon . | . . . Parts Attached 17 | 7 2 8 Power 4 | 1 . 3 Engine 4 | 1 . 3 Core . | . . . Reactor . | . . . Propulsion 8 | 3 . 5 Treads . | . . . Leg . | . . . Wheel 3 | 3 . . Hover . | . . . Flight 5 | . . 5 Utility 2 | 1 1 . Device 1 | 1 . . Storage . | . . . Processor 1 | . 1 . Hackware . | . . . Protection . | . . . Artifact . | . . . Weapon 3 | 2 1 . Energy Gun . | . . . Energy Cannon . | . . . Ballistic Gun 2 | 2 . . Ballistic Cannon . | . . . Launcher 1 | . 1 . Special Weapon . | . . . Impact Weapon . | . . . Slashing Weapon . | . . . Piercing Weapon . | . . . Special Melee Weapon . | . . . Unidentified Prototypes . | . . . Parts Lost 7 | . . 7 Power . | . . . Propulsion 4 | . . 4 Utility . | . . . Weapon 3 | . . 3 Highest Loss Streak 5 | . . 5 To Critical Strikes . | . . . Average Backups 4 | 2 4 4 Power 1 | 1 1 1 Propulsion 1 | . 1 1 Utility . | . . 1 Weapon . | . . . Tool/Special . | . . . Unused Backups 5 | 1 1 3 Power 3 | 1 1 1 Propulsion . | . . . Utility 2 | . . 2 Weapon . | . . . Tool/Special . | . . . Average Slot Usage (%) 85 | . 91 83 Engine 11 | . 14 10 Wheel 22 | . 28 20 Flight 8 | . . 11 Device 11 | . 14 10 Processor 9 | . 5 10 Ballistic Gun 21 | . 27 19 Peak Build Rating 12 | 8 10 12 Average Rating 9 | 6 8 10 On Entrance 6 | . 8 10 Avg Prop Armor Cover (%) 3 | . . 3 Naked Turns 30 | . . 30 Heaviest Build 12 | 8 8 12 Greatest Support 36 | 26 26 36 Greatest Overweight (x) 1 | 1 . 1 Average Overweight (x) . | . . . Largest Inventory Capacity 5 | 5 5 5 Average Capacity 5 | 5 5 5 Most Carried 5 | 4 5 5 Average Carried 4 | 2 4 4 Final Capacity 5 | 5 5 5 Final Carried 5 | 3 5 3 Class Distribution -------------------- 78% | Mutant 21% | Scavenger-Mutant Dominant Class ---------------- Mutant | -10/Materials Mutant | -9/Materials Resources | -11 -10 -9 ----------- Run | Yrd Mat Mat Matter Collected 771 | 333 100 338 Remotely . | . . . Salvage Created 818 | 179 140 499 Parts 62 | 18 10 34 Haulers Intercepted . | . . . Recyclers Shooed 1 | . . 1 Parts Field Recycled . | . . . Retrieved Matter . | . . . Parts Self-Destructed . | . . . Prevented . | . . . Parts Restored . | . . . Kills | -11 -10 -9 ------- Run | Yrd Mat Mat Combat Hostiles Destroyed 12 | . . 12 Guns 9 | . . 9 AOE 3 | . . 3 Classes Destroyed 8 | 3 1 4 Worker 3 | 2 . 1 Builder 2 | . 2 . Tunneler 4 | 4 . . Recycler 2 | 1 1 . Mechanic 1 | . . 1 Swarmer 3 | . . 3 Grunt 6 | . . 6 Sentry 3 | . . 3 Best Kill Streak 6 | 3 1 6 Combat Bots Only 5 | . . 5 Max Kills in Single Turn 2 | 1 1 2 Gunslinging . | . . . Exploded 1 | . . 1 Melee . | . . . Uniques/NPCs Destroyed . | . . . Combat | -11 -10 -9 -------- Run | Yrd Mat Mat Hostile Shots Fired 110 | . . 110 Missed 39 | . . 39 Hits 71 | . . 71 Projectile 71 | . . 71 Critical Strikes 1 | . . 1 Damage Taken 993 | . 41 952 Core 406 | . 5 401 Absorbed by Shields . | . . . Core Remaining (%) 99 | 100 98 . Volleys Fired 62 | 13 13 36 Largest 2 | 2 2 2 Hottest 50 | 40 50 40 Shots Fired 107 | 21 26 60 Gun 96 | 21 23 52 Cannon . | . . . Launcher 11 | . 3 8 Special . | . . . Kinetic 96 | 21 23 52 Thermal . | . . . Explosive 11 | . 3 8 Electromagnetic . | . . . Robot Hit Streak 14 | 9 14 14 Robot Miss Streak 4 | 2 4 2 Penetration Max . | . . . Secondary Targets . | . . . Shots Hit Robots 73 | 17 12 44 Core Hits 49 | 7 8 34 Critical Kills . | . . . Critical Parts Destroyed . | . . . Critical Strikes . | . . . Melee Attacks . | . . . Impact . | . . . Slashing . | . . . Piercing . | . . . Sneak Attacks . | . . . Combat Hostiles . | . . . Follow-up Attacks . | . . . Damage Inflicted 1345 | 214 197 934 Guns 885 | 214 169 502 Cannons . | . . . Explosions 457 | . 28 429 Melee . | . . . Ramming 3 | . . 3 Kinetic 885 | 214 169 502 Thermal . | . . . Explosive 429 | . . 429 Electromagnetic 28 | . 28 . Impact . | . . . Slashing . | . . . Piercing . | . . . Highest Corruption 1 | . . 1 Average Corruption 1 | . . 1 Corruption Purged . | . . . Corruption Blocked . | . . . Effects 1 | . . 1 Message Errors 1 | . . 1 Overload Shots . | . . . Overflow Damage 1 | . . 1 Projectiles . | . . . Explosions 1 | . . 1 Melee . | . . . Knockbacks . | . . . Impact . | . . . Kinetic . | . . . Secondary . | . . . Self-Inflicted Damage 101 | . 43 58 Shots 5 | . 2 3 Rammed 2 | . . 2 Targets Rammed 2 | . . 2 Kicked . | . . . Crushed . | . . . Highest Temperature 5 | . . 5 Average Temperature 2 | . . 2 Received Heat Transfer 318 | . . 318 Siege Activations . | . . . Martial Activations . | . . . Shielding Activations . | . . . Robots Disrupted . | . . . Combat Hostiles . | . . . Robots Corrupted . | . . . Combat Hostiles . | . . . Parts Fried . | . . . Impact Corruptions . | . . . Robots Melted . | . . . Combat Hostiles . | . . . Parts Melted . | . . . Heat Transferred . | . . . Parts Sabotaged . | . . . Parts Stolen . | . . . Parts Stripped . | . . . Power Chain Reactions . | . . . Alert | -11 -10 -9 ------- Run | Yrd Mat Mat Maximum Alert Level . | . . . Low Security (%) 100 | 100 100 100 Level 1 . | . . . Level 2 . | . . . Level 3 . | . . . Level 4 . | . . . Level 5 . | . . . High Security . | . . . Max Security . | . . . Peak Influence 182 | 10 37 182 Initial 15 | . 6 15 Average 31 | 3 3 46 Influence Increases 476 | 35 72 369 Destroy 0b10 Robot/C 240 | . . 240 Destroy 0b10 Robot/NC 60 | 35 15 10 Destroy Leader 70 | . . 70 Successful Hack 14 | . 14 . Disable Machine 30 | . 30 . Destroy Structure 47 | . 13 34 Lose Combat Pursuer 15 | . . 15 Influence Decreases 323 | 25 45 253 Entered New Map 26 | . 4 22 Time Decay 227 | 25 41 161 Lost Part 70 | . . 70 Squads Dispatched 3 | . . 3 Investigation 1 | . . 1 Extermination . | . . . Reinforcement 2 | . . 2 Assault . | . . . Garrison . | . . . Intercept . | . . . Searches Triggered . | . . . Construction Impeded 1 | . . 1 Haulers Reinforced . | . . . Active Scanning Responses . | . . . Cargo Convoy Interrupts . | . . . Stealth | -11 -10 -9 --------- Run | Yrd Mat Mat Distress Signals . | . . . Communications Jammed . | . . . Distress Signals . | . . . Times Spotted 24 | . 1 23 Peak Tracking Total 7 | . 1 7 Tactical Retreats 1 | . . 1 Traps | -11 -10 -9 ------- Run | Yrd Mat Mat Traps Triggered . | . . . Indirectly . | . . . Trap Hack Attempts . | . . . Triggered . | . . . Disarmed . | . . . Reprogrammed . | . . . Reused . | . . . Traps Extracted . | . . . Installed . | . . . Triggered . | . . . Machines | -11 -10 -9 ---------- Run | Yrd Mat Mat Machines Disabled 2 | . 2 . Max in Single Turn 2 | . 2 . Machines Repaired . | . . . Machines Dismantled . | . . . Machines Sabotaged . | . . . Overloaded Fab Kills . | . . . Hacking | -11 -10 -9 --------- Run | Yrd Mat Mat Machines Accessed 5 | . 3 2 Terminals 3 | . 2 1 Fabricators . | . . . Repair Stations . | . . . Recycling Units 1 | . 1 . Scanalyzers 1 | . . 1 Garrison Access . | . . . Total Hacks 10 | . 5 5 Successful 3 | . 2 1 Failed 7 | . 3 4 Catastrophic 3 | . 1 2 Database Lockouts . | . . . Manual 3 | . 1 2 Terminals 6 | . 3 3 Fabricators . | . . . Repair Stations . | . . . Recycling Units 2 | . 2 . Scanalyzers 2 | . . 2 Garrison Access . | . . . Terminal Hacks 2 | . 1 1 Zone Layout 2 | . 1 1 Fabricator Hacks . | . . . Repair Station Hacks . | . . . Recycling Unit Hacks 1 | . 1 . Retrieve Components 1 | . 1 . Scanalyzer . | . . . Garrison Access Hacks . | . . . Unauthorized Hacks . | . . . Terminals . | . . . Fabricators . | . . . Repair Stations . | . . . Recycling Units . | . . . Scanalyzers . | . . . Garrison Access . | . . . Data Cores Recovered . | . . . Used . | . . . Hacking Detections 3 | . 1 2 Full Trace Events 2 | . . 2 Feedback Events 1 | . . 1 Corruption 1 | . . 1 Feedback Blocked . | . . . Robot Schematics Acquired . | . . . Robots Built . | . . . Authchips . | . . . Time . | . . . Total Robot Build Rating . | . . . Part Schematics Acquired . | . . . Parts Built . | . . . Authchips . | . . . Time . | . . . Total Part Build Rating . | . . . Part Studies Acquired . | . . . Parts Repaired . | . . . Time . | . . . Parts Recycled . | . . . Recycled Matter . | . . . Retrieved Matter . | . . . Retrieved Components 2 | . 2 . Parts Scanalyzed . | . . . Part Schematics Acquired . | . . . Parts Damaged . | . . . Bothacking | -11 -10 -9 ------------ Run | Yrd Mat Mat Used RIF Installer . | . . . Robots Hacked . | . . . Non-combat . | . . . Combat . | . . . Robot Hacks Applied . | . . . Relay Couplers Released . | . . . Fabnet Peak Effective % . | . . . Robots Rewired . | . . . Allies Hacked . | . . . Hacks Repelled . | . . . Allies | -11 -10 -9 -------- Run | Yrd Mat Mat Total Allies . | . . . Largest Group . | . . . Highest-Rated Group . | . . . Highest-Rated Ally . | . . . Total Orders . | . . . Ally Attacks . | . . . Total Damage . | . . . Kills . | . . . Allies Corrupted . | . . . Allies Melted . | . . . Intel | -11 -10 -9 ------- Run | Yrd Mat Mat Active Infowar (turns) 1202 | 87 295 820 Terrain 1202 | 87 295 820 Robot Analysis Total . | . . . Derelict Logs Recovered . | . . . Drone Launches . | . . . Drone Recoveries . | . . . Exploration | -11 -10 -9 ------------- Run | Yrd Mat Mat Turns Passed 1277 | 132 295 850 Spaces Moved 684 | 93 265 326 Core 74 | 18 . 56 Treads . | . . . Legs . | . . . Wheels 363 | 75 265 23 Hover . | . . . Flight 247 | . . 247 Fastest Speed 31 | 50 90 31 Average Speed 66 | 83 90 41 Slowest Speed 117 | 100 90 117 Overloaded Moves . | . . . Propulsion Burnouts . | . . . Robots Hopped 5 | . . 5 Potential Cave-ins 3 | . . 3 Cave-ins Triggered . | . . . Exploration Rate (%) 18 | 3 30 23 Regions Visited 2 Branch Regions . Pre-discovered Areas . | . . . Known Exits Taken . | . . . Unknown Exits Taken 2 | 1 1 . Scrap Searched . | . . . Spaces Dug . | . . . Terrain Destroyed 61 | . 19 42 Melee . | . . . Projectile . | . . . AOE 61 | . 19 42 Terrain Rammed . | . . . Walls Destroyed . | . . . Machines Disabled . | . . . Actions | -11 -10 -9 --------- Run | Yrd Mat Mat Total 1392 | 123 294 975 Wait 602 | 5 10 587 Move 672 | 92 264 316 Hop 5 | . . 5 Pick Up 12 | 5 3 4 Fast Attach 7 | 5 1 1 Attach 7 | 1 . 6 Detach 3 | . . 3 Swap 12 | 1 2 9 Drop 8 | 1 1 6 Fire 62 | 13 13 36 Melee . | . . . Ram 2 | . . 2 Kick . | . . . Crush . | . . . Escape Stasis . | . . . Rewire . | . . . Trap . | . . . Miscellaneous . | . . . Route ------- -11/Scrapyard -10/Materials -9/Materials History --------- Turn | Location | Event 7 | -11/Scrapyard | Discovered new exit (range 15) 133 | -11/Scrapyard | Entered Materials 305 | -10/Materials | Build established: Mutant 331 | -10/Materials | Discovered new exit (range 9) 428 | -10/Materials | Entered another Materials area 428 | -9/Materials | Evolved 2 slots: Propulsion x2 1235 | -9/Materials | Lost 5 parts (3n2w) 1248 | -9/Materials | Core integrity fell below 50% 1248 | -9/Materials | Released all parts (4) 1261 | -9/Materials | Core integrity fell below 20% 1278 | -9/Materials | Destroyed by G-34 Mercenary with Small Laser Last Messages --------------- ALERT: Construction progress impeded, dispatching reinforcements to local area. G-34 Mercenary destroyed. The unstable cave ceiling collapses. R-06 Scavenger collects Wheel. Acquired 51 matter. G-34 Mercenary destroyed. Flight Unit destroyed. Grenade Launcher destroyed. K-01 Serf collects debris. Released Terrain Scan Processor. Released Imp. Terrain Scanner. Released Flight Unit. Released Imp. Ion Engine. Critical hit (Burn: +37). K-01 Serf collects debris. U-05 Engineer lays Concrete. The unstable cave ceiling collapses. U-05 Engineer lays Concrete. Slammed into S-10 Pest. Map ----- +----------------------------------------------------+ | ???????????????????????????????????????????????? | | ???????????????????????????????????????????????? | | ???????????????????????????????????????????????? | | ???????????????????????????????????????????????? | | ???????????????????????????????????????????????? | | ???????????????????????????????????????????????? | | ???????????????????????????????????????????????? | | ???????????????????????????????????????????????? | | ???????????????????????????????????????????????? | | ???????????????????????????????????????????????? | | ????????????????????? ???????????????????????? | | ????????????????????? T??????????????????????? | | ????????????????????? "??????????????????????? | | ????????????????????? #?????????????????????? | | ????????????????????? #?????????????????????? | | ?????????????????????# k #?????????????????????? | | ?????????????????????# #?????????????????????? | | ?????????????????????# +?????????????????????? | | ?????????????????????# #?????????????????????? | | ?????????????????????# #?????????????????????? | | ?????????????????????# #?????????????????????? | | ?????????????????????# #?????????????????????? | | ?????????????????????# ######## ####?????????? | | ????????????# """"" + g ????????? | | ????????????# """"" # k g ????????? | | ????????????# """ # @ ????????? | | ????????????# + u a ???????? | | ????????????# ## ############???????????? | | ?????????#??########### #?????#????????????????? | | ????#?????????????#???#s#?#??? ????????????????? | | #??????????#??????#???#s###???????? ????#??????? | | ?????????#???????#?##?#s#??????????? ?#????????? | | ??????#??#???########## ###??? ????? ????#?????? | | ????#?????????# ##u#########?#?##????#????? | | ???????#?????## """ # # #???#??#???????? | | ??????######## R" # # ]]##?#??#?#?# ???? | | ??????# ## """ / |] #?#??#???##????? | | #??#??#" """ ## # #%]] ###??????#?????? | | ??????#T """ ## %#= #???#?????#????? | | ??????#" """ ######### % ## ###?????#??????? | | ??????# + ### # #??#??#???#????? | | ??????# #### #?# ## # # ##????#??##???#? | | ??????######## ## #### # # ##???#??#?#? ???? | | ???##??# # #?## # ######???##?#?? ???? | | ?#????## """ # #??### # #?#?##??#? ??? | | ???????# """ # ###??# # #???#???#? ???? | | ??#????# """ # #### # ##??#?#?#??? #? | | ?#?????# + #### # ##???#???#????? | | ?#?#???# """ # # % #??#?#??#????? | | ????#### """ # # ##???#?#?#?? ?? | +----------------------------------------------------+ Best States ------------- Heat Dissipation 28 Energy Generation 12 Energy Capacity 265 Matter Stores 300 Matter Capacity 300 Sight Range 16 Terrain Scan Range 16 Terrain Scan Density 85 Evasion (%) 63 Item Schematics ----------------- None Robot Schematics ------------------ None Fabricated ------------ Nothing Repaired ---------- Nothing Studied --------- None Alien Tech Used ----------------- None Achievements -------------- None Challenges ------------ None Game ------ Seed MissileAssaultStatue Manual? 0 Play Time 00:24:42 Cumulative 36.3 hours Start 2026.09.17 @ 06:04:46 End 2026.09.18 @ 04:51:33 Sessions 2 Manual Loads 0 Difficulty Rogue Special Mode None Game No. 37 Rogue 27 Adventurer 5 Explorer 5 Win Type - Total 0 Types 0/0/0/0/0/0/0/0/0/0 Lore% 11 Gallery% 19 Achievement% 18 Wizard Run 0 Options --------- Layout 1 ASCII 0 Keyboard 1 Movement Vi Keybinds 0 Fullscreen 2 Font 36/Crisp Map View 55x38 Zoom Use 0% Tactical HUD 0 Map Filters NONE Filters NONE Steam 1 RUN: 99e495f6-c142-49e6-9793-462d7d0d3daa